bitfinex-derivatives/quotes_ETHF0:USTF0_20250505
["timestamp","ask_amount","ask_price","bid_price","bid_amount"]
[1746474405379,1.10028,1818.0,1817.8,1.6441]
[1746474405586,1.10033,1817.9,1817.8,2.74444]
[1746474406086,1.10031,1818.0,1817.9,1.1003]
[1746474406282,1.10031,1818.0,1817.9,1.9306]
[1746474406485,1.10031,1818.0,1817.9,0.8303]
[1746474407086,1.10031,1818.0,1817.9,4.5623]
[1746474407487,6.57538947,1818.0,1817.9,4.5623]
[1746474408580,1.10031,1818.0,1817.9,4.5623]
[1746474409085,1.10031,1818.0,1817.9,5.66263]
[1746474409286,1.10031,1818.0,1817.9,4.5623]
[1746474409484,1.10031,1818.0,1817.9,5.66263]
[1746474409689,1.10031,1818.0,1817.9,4.5623]
[1746474411187,4.30811,1818.0,1817.9,4.5623]
[1746474411485,9.78186222,1818.0,1817.9,4.5623]
[1746474411882,9.78186222,1818.0,1817.9,5.66263]
[1746474412478,9.78186222,1818.0,1817.9,4.5623]
[1746474412681,4.30811,1818.0,1817.9,5.66263]
[1746474413389,3.2078,1818.0,1817.9,5.66263]
[1746474414091,4.30807,1818.0,1817.9,5.66263]
[1746474414290,9.78015178,1818.0,1817.9,5.66263]
[1746474414590,8.67988178,1818.0,1817.9,5.66263]
[1746474414979,9.78015178,1818.0,1817.9,5.66263]
[1746474415392,8.67988178,1818.0,1817.9,5.66263]
[1746474415589,3.2078,1818.0,1817.9,5.66263]
[1746474415787,5.13128,1818.2,1818.1,1.10021]
[1746474415984,5.6845,1818.4,1818.1,3.85067]
[1746474416188,3.2078,1818.4,1818.3,1.10009]
[1746474416388,4.30783,1818.4,1818.3,1.10009]
[1746474417086,4.30783,1818.4,1818.3,4.83209]
[1746474417592,4.30783,1818.4,1818.3,45.63209]
[1746474418791,17.76890351,1818.4,1818.3,45.63209]
[1746474418996,16.66887351,1818.4,1818.3,45.63209]
[1746474419390,17.76890351,1818.4,1818.3,45.63209]
[1746474420793,17.76890351,1818.4,1818.3,44.532]
[1746474421093,25.21540351,1818.4,1818.3,44.532]
[1746474421390,2.75041,1818.2,1817.7,0.8471]
[1746474421586,3.2078,1817.8,1817.7,1.10045]
[1746474421785,3.2078,1817.8,1817.7,41.90045]
[1746474422288,3.2078,1817.8,1817.7,45.63245]
[1746474422490,3.2078,1818.0,1817.9,1.10033]
[1746474422688,2.68684,1818.1,1818.0,1.10027]
[1746474422893,5.89464,1818.1,1818.0,1.10027]
[1746474423296,5.89464,1818.1,1818.0,4.83227]
[1746474423799,4.7944,1818.1,1818.0,4.83227]
[1746474424000,5.89461,1818.1,1818.0,4.83227]
[1746474424196,0.7807,1818.1,1818.0,4.83227]
[1746474424496,4.7979,1818.3,1818.2,1.10015]
[1746474424903,12.09389865,1818.3,1818.2,1.10015]
[1746474425196,13.19398865,1818.3,1818.2,4.83215]
[1746474425493,13.66859865,1818.3,1818.2,4.83215]
[1746474425699,11.31029865,1818.3,1818.2,5.65495]
[1746474425895,7.29599865,1818.3,1818.2,6.49145]
[1746474426599,5.88249,1818.5,1818.4,1.10003]
[1746474426801,1.10003,1818.4,1818.3,2.69624]
[1746474428101,1.10003,1818.4,1818.3,6.42824]
[1746474428601,2.77853,1818.4,1818.3,6.42824]
[1746474428903,3.58933,1818.4,1818.3,6.42824]
[1746474429096,3.58933,1818.4,1818.3,3.732]
[1746474433405,1.1002,1818.2,1818.1,1.10019]
[1746474433699,4.308,1818.2,1818.1,41.90019]
[1746474433904,4.308,1818.2,1818.1,40.8]
[1746474434107,5.0968,1818.2,1818.1,41.90021]
[1746474434701,1.6012,1818.3,1818.2,1.10015]
[1746474434907,3.2078,1818.4,1818.3,1.10009]
[1746474435105,7.89003994,1818.5,1818.4,1.10003]
[1746474435406,8.99000994,1818.5,1818.4,1.10003]
[1746474435606,12.19780994,1818.5,1818.4,1.10003]
[1746474436102,11.09783994,1818.5,1818.4,4.83203]
[1746474436304,12.19780994,1818.5,1818.4,4.83203]
[1746474436502,12.19780994,1818.5,1818.4,3.732]
[1746474436708,12.19780994,1818.5,1818.4,4.83203]
[1746474437908,6.74697,1818.5,1818.4,4.83203]
[1746474438306,6.74697,1818.5,1818.4,3.732]
[1746474438507,6.74697,1818.5,1818.4,4.83203]
[1746474438806,6.74697,1818.5,1818.4,5.3219]
[1746474439604,6.74697,1818.5,1818.4,6.42193]
[1746474441406,6.74697,1818.5,1818.4,5.3219]
[1746474441602,6.74697,1818.5,1818.4,3.732]
[1746474443107,6.74697,1818.5,1818.4,4.83203]
[1746474443307,6.74697,1818.5,1818.4,3.732]
[1746474443504,6.74697,1818.5,1818.4,4.83203]
[1746474443703,5.647,1818.5,1818.4,6.56193]
[1746474444008,6.74697,1818.5,1818.4,6.56193]
[1746474444210,2.4392,1818.5,1818.4,6.56193]
[1746474445203,6.7468,1819.1,1818.9,1.09973]
[1746474445408,3.2078,1819.1,1818.9,1.09973]
[1746474445608,3.2078,1819.1,1818.9,41.89973]
[1746474445809,3.2078,1819.1,1818.9,43.62963]
[1746474446204,4.30743,1819.1,1818.9,47.36163]
[1746474446704,4.30742,1819.1,1818.9,47.36163]
[1746474446911,3.2078,1819.1,1818.9,47.36163]
[1746474447210,4.30741,1819.1,1818.9,47.36163]
[1746474447611,3.2078,1819.1,1818.9,47.36163]
[1746474451113,4.30741,1819.1,1818.9,47.36163]
[1746474451411,3.2078,1819.1,1818.9,47.36163]
[1746474456913,2.5093,1819.2,1818.9,47.36163]
[1746474457114,0.8193,1819.2,1818.9,47.36163]
[1746474457313,4.30729,1819.3,1818.9,47.36163]
[1746474458214,3.2078,1819.3,1818.9,47.36163]
[1746474458415,4.42384075,1819.0,1818.9,47.36163]
[1746474467212,5.52351075,1819.0,1818.9,44.532]
[1746474467416,5.52351075,1819.0,1818.9,3.732]
[1746474467417,10.52351075,1819.0,1818.9,3.732]
[1746474467616,13.03831075,1819.0,1818.9,3.732]
[1746474469113,11.93864075,1819.0,1818.8,1.09977]
[1746474469321,1.09979,1818.8,1818.7,41.89979]
[1746474469622,4.869,1818.9,1818.8,1.09979]
[1746474469921,3.2078,1818.9,1818.8,1.09979]
[1746474470109,4.30753,1818.9,1818.8,4.83179]
[1746474470314,4.30753,1818.9,1818.8,3.732]
[1746474470721,4.30753,1818.9,1818.8,4.83179]
[1746474471521,3.2078,1818.9,1818.8,4.83179]
[1746474471724,3.2078,1818.9,1818.8,6.51839]
[1746474471928,3.2078,1818.9,1818.8,7.31499]
[1746474472926,5.24314075,1819.0,1818.9,1.09973]
[1746474474225,5.24314075,1819.0,1818.9,4.83173]
[1746474475025,6.34281075,1819.0,1818.9,4.83173]
[1746474475828,5.24314075,1819.0,1818.9,4.83173]
[1746474476320,5.52351075,1819.0,1818.9,4.83173]
[1746474476527,4.42384075,1819.0,1818.9,4.83173]
[1746474476726,4.42384075,1819.0,1818.9,7.20603]
[1746474483640,4.42384075,1819.0,1818.9,4.83173]
[1746474484539,4.42384075,1819.0,1818.9,6.46973]
[1746474485935,5.21224075,1819.0,1818.9,6.46973]
[1746474486441,6.05214075,1819.0,1818.9,6.46973]
[1746474487042,7.66274075,1819.0,1818.9,4.83173]
[1746474489437,8.76241075,1819.0,1818.9,4.83173]
[1746474490150,16.97021075,1819.0,1818.9,3.732]
[1746474491238,15.87054075,1819.0,1818.7,41.8998]
[1746474491438,1.09979,1818.8,1818.7,41.8998]
[1746474491641,4.30759,1818.8,1818.7,41.8998]
[1746474492243,4.30759,1818.8,1818.7,45.6318]
[1746474494539,4.30759,1818.8,1818.7,44.532]
[1746474494741,4.30759,1818.8,1818.7,3.732]
[1746474495245,1.09985,1818.7,1818.6,41.89986]
[1746474495433,4.36915,1818.7,1818.6,41.89986]
[1746474495839,3.2078,1818.8,1818.7,1.09985]
[1746474496144,3.2078,1818.8,1818.7,8.15505]
[1746474496345,11.60853372,1818.8,1818.7,8.15505]
[1746474496946,10.50874372,1818.8,1818.7,8.15505]
[1746474497346,11.60853372,1818.8,1818.7,8.15505]
[1746474497844,10.50874372,1818.8,1818.7,8.15505]
[1746474498146,7.30094372,1818.8,1818.7,8.15505]
[1746474498347,8.40073372,1818.8,1818.7,8.15505]
[1746474498546,7.30094372,1818.8,1818.7,8.15505]
[1746474499146,8.40073372,1818.8,1818.7,8.15505]
[1746474499649,7.30094372,1818.8,1818.7,8.15505]
[1746474499947,3.65120243,1818.8,1818.7,8.15505]
[1746474500149,4.75099243,1818.8,1818.7,8.15505]
[1746474500748,3.65120243,1818.8,1818.7,8.15505]
[1746474501549,4.75099243,1818.8,1818.7,8.15505]
[1746474502037,3.65120243,1818.8,1818.7,8.15505]
[1746474506149,3.65120243,1818.8,1818.7,11.69805]
[1746474507948,3.65120243,1818.9,1818.8,1.09979]
[1746474508142,3.65120243,1818.9,1818.8,2.76019]
[1746474509149,3.65120243,1818.9,1818.8,6.49219]
[1746474511752,11.36854318,1819.0,1818.9,1.09973]
[1746474512051,11.36854318,1819.0,1818.9,2.65743]
[1746474513150,11.36854318,1819.0,1818.9,6.38943]
[1746474513654,10.50554318,1819.0,1818.9,6.38943]
[1746474513953,8.07504318,1819.0,1818.9,6.38943]
[1746474514156,8.07504318,1819.0,1818.9,9.59723]
[1746474514452,6.75421318,1819.0,1818.9,9.59723]
[1746474515058,6.75421318,1819.0,1818.9,14.59723]
[1746474516154,6.75421318,1819.0,1818.9,9.59723]
[1746474517155,5.55880318,1819.0,1818.9,9.59723]
[1746474517459,9.07600559,1819.4,1819.3,1.09948]
[1746474517658,9.07600559,1819.4,1819.3,4.63348]
[1746474518151,9.07600559,1819.4,1819.3,11.57368]
[1746474518662,9.82530799,1819.5,1819.3,8.8341]
[1746474518957,1.6076,1819.4,1819.3,9.93358]
[1746474519558,1.6076,1819.4,1819.3,50.73358]
[1746474521850,1.6076,1819.4,1819.3,49.16548]
[1746474526664,2.74306,1819.5,1819.4,1.09942]
[1746474526870,4.36966,1819.5,1819.4,1.09942]
[1746474527165,4.36966,1819.5,1819.4,3.732]
[1746474527360,4.36966,1819.5,1819.4,4.83142]
[1746474531068,4.36966,1819.5,1819.4,3.732]
[1746474531269,1.09942,1819.4,1819.3,41.89948]
[1746474531570,5.91662,1819.4,1819.3,41.89948]
[1746474532266,5.91662,1819.4,1819.3,45.63148]
[1746474537678,4.8172,1819.4,1819.3,45.63148]
[1746474538181,4.8172,1819.4,1819.3,47.20908]
[1746474538374,1.6094,1819.4,1819.3,47.20908]
[1746474538574,3.2078,1819.7,1819.6,1.0993]
[1746474538877,4.30704,1819.7,1819.6,1.0993]
[1746474539072,3.2078,1819.7,1819.6,1.0993]
[1746474539474,3.2078,1819.7,1819.6,2.6769]
[1746474539975,4.8321,1819.7,1819.6,2.6769]
[1746474540682,1.6243,1819.7,1819.6,2.6769]
[1746474541282,2.72354,1819.7,1819.6,2.6769]
[1746474542181,1.6243,1819.7,1819.6,2.6769]
[1746474542386,1.6243,1819.7,1819.6,3.5349]
[1746474542681,10.66070559,1819.8,1819.7,1.09924]
[1746474542878,1.5847,1819.8,1819.7,3.50024]
[1746474543079,0.8012,1819.8,1819.7,3.50024]
[1746474543275,0.8012,1819.8,1819.7,7.23224]
[1746474543474,1.90038,1819.8,1819.7,7.23224]
[1746474543680,3.46458,1819.8,1819.7,7.23224]
[1746474544080,2.3654,1819.8,1819.7,7.23224]
[1746474544383,3.46458,1819.8,1819.7,4.83124]
[1746474544882,3.46458,1819.8,1819.7,3.732]
[1746474545082,1.09924,1819.7,1819.6,1.0993]
[1746474545382,6.84094,1819.7,1819.6,1.0993]
[1746474546279,1.0993,1819.6,1819.5,3.732]
[1746474546487,2.7995,1819.6,1819.5,4.83136]
[1746474546985,1.7002,1819.6,1819.5,4.83136]
[1746474547186,2.7995,1819.6,1819.5,4.83136]
[1746474547681,3.2078,1819.7,1819.6,1.0993]
[1746474547987,3.2078,1819.7,1819.6,3.4936]
[1746474550282,1.09924,1819.7,1819.6,3.4936]
[1746474550781,2.70724,1819.7,1819.6,3.4936]
[1746474551684,1.608,1819.7,1819.6,3.4936]
[1746474551886,2.70724,1819.7,1819.6,3.4936]
[1746474552294,1.608,1819.7,1819.6,3.4936]
[1746474552692,2.70724,1819.7,1819.6,3.4936]
[1746474552992,2.70724,1819.7,1819.6,1.0993]
[1746474553196,1.0993,1819.6,1819.5,3.732]
[1746474553489,6.6907,1819.6,1819.5,4.83136]
[1746474557093,6.6907,1819.6,1819.5,3.732]
[1746474559004,6.6907,1819.6,1819.5,4.83136]
[1746474560608,5.8895,1819.6,1819.5,4.83136]
[1746474560802,5.8895,1819.6,1819.5,5.67406]
[1746474561304,5.8895,1819.6,1819.5,7.38766]
[1746474563898,5.8895,1819.6,1819.5,6.2883]
[1746474564208,5.8895,1819.6,1819.5,3.732]
[1746474565107,1.09948,1819.4,1819.2,40.8]
[1746474565308,1.09948,1819.4,1819.3,1.09947]
[1746474565499,4.30728,1819.4,1819.3,2.66787]
[1746474566002,4.30728,1819.4,1819.3,3.47397]
[1746474566209,4.30728,1819.4,1819.3,7.20597]
[1746474566707,4.30722,1819.4,1819.3,7.20597]
[1746474566906,3.2078,1819.4,1819.3,7.20597]
[1746474567401,4.30722,1819.4,1819.3,7.20597]
[1746474568007,4.30722,1819.4,1819.3,6.39987]
[1746474568207,5.16432,1819.4,1819.3,6.39987]
[1746474568507,6.77572,1819.4,1819.3,6.39987]
[1746474569609,2.71082,1819.4,1819.3,6.39987]
[1746474570001,2.71082,1819.4,1819.3,7.18087]
[1746474572710,5.91862,1819.4,1819.3,7.18087]
[1746474574406,5.91862,1819.4,1819.3,3.732]
[1746474574813,5.91862,1819.4,1819.3,4.83148]
[1746474575710,5.91862,1819.4,1819.3,6.55878]
[1746474578118,3.2078,1819.4,1819.3,6.55878]
[1746474578318,3.2078,1819.4,1819.3,7.36968]
[1746474579619,3.2078,1819.4,1819.3,48.16968]
[1746474580121,6.55880666,1819.5,1819.4,1.09942]
[1746474580321,6.55880666,1819.5,1819.4,3.49422]
[1746474581216,8.20240666,1819.5,1819.4,7.22622]
[1746474582823,2.74301,1819.5,1819.4,7.22622]
[1746474584922,1.6436,1819.5,1819.4,7.22622]
[1746474585216,2.74296,1819.5,1819.4,7.22622]
[1746474585423,1.09936,1819.5,1819.4,7.22622]
[1746474586425,11.42133666,1819.6,1819.5,1.09936]
[1746474586611,9.76653666,1819.6,1819.5,1.09936]
[1746474586817,9.76653666,1819.6,1819.5,2.82046]
[1746474588224,9.76653666,1819.6,1819.5,1.7211]
[1746474590311,9.76653666,1819.6,1819.5,2.82046]
[1746474590724,9.76653666,1819.6,1819.5,1.7211]
[1746474592124,9.76653666,1819.6,1819.5,3.732]
[1746474593222,1.09936,1819.5,1819.4,3.59079]
[1746474594223,1.09936,1819.5,1819.4,7.32279]
[1746474595118,1.09942,1819.4,1819.3,41.89947]
[1746474595414,5.10322,1819.4,1819.3,41.89947]
[1746474595624,5.10322,1819.4,1819.3,40.8]
[1746474595824,5.10322,1819.4,1819.3,41.89948]
[1746474596125,5.10322,1819.4,1819.3,45.63148]
[1746474596319,5.10322,1819.4,1819.3,47.35828]
[1746474596518,1.89542,1819.4,1819.3,47.35828]
[1746474597517,5.10322,1819.4,1819.3,44.532]
[1746474597714,10.56261666,1819.4,1819.3,44.532]
[1746474598226,10.56261666,1819.4,1819.3,40.8]
[1746474598424,10.56261666,1819.4,1819.3,41.89948]
[1746474599130,9.76661666,1819.4,1819.3,46.45908]
[1746474600118,9.76661666,1819.4,1819.3,49.66688]
[1746474600119,6.55881666,1819.4,1819.3,49.66688]
[1746474600314,7.2815441,1819.6,1819.5,1.09936]
[1746474600529,7.2815441,1819.6,1819.5,4.30716]
[1746474600716,7.2815441,1819.6,1819.5,9.30716]
[1746474600924,1.0993,1819.6,1819.5,1.5561]
[1746474601130,4.3071,1819.6,1819.5,5.2881]
[1746474601427,4.3071,1819.6,1819.5,3.732]
[1746474602124,4.3071,1819.6,1819.5,4.83136]
[1746474603122,4.3071,1819.6,1819.5,6.49816]
[1746474603428,4.3071,1819.6,1819.5,5.3988]
[1746474604415,4.3071,1819.6,1819.5,3.732]
[1746474605228,1.09936,1819.5,1819.4,1.0994]
[1746474605431,3.357,1819.5,1819.4,1.0994]
[1746474606228,3.357,1819.5,1819.4,6.5591]
[1746474606427,3.2078,1819.6,1819.5,1.09936]
[1746474606630,3.2078,1819.6,1819.5,2.82706]
[1746474607225,3.2078,1819.6,1819.5,6.55906]
[1746474608822,4.3071,1819.6,1819.5,6.55906]
[1746474609025,6.8391,1819.6,1819.5,6.55906]
[1746474609229,5.7398,1819.6,1819.5,6.55906]
[1746474609632,3.2078,1819.6,1819.5,6.55906]
[1746474609928,4.3071,1819.6,1819.5,6.55906]
[1746474610428,1.6736,1819.7,1819.6,1.0993]
[1746474610631,3.2078,1819.8,1819.7,1.09924]
[1746474610930,3.2078,1819.8,1819.7,1.87814]
[1746474611134,3.2078,1819.8,1819.7,7.32024]
[1746474612730,1.09912,1819.9,1819.8,1.09918]
[1746474612931,1.09912,1819.9,1819.8,2.68248]
[1746474613124,1.09912,1819.9,1819.8,6.41448]
[1746474613631,2.82512,1819.9,1819.8,6.41448]
[1746474614228,1.726,1819.9,1819.8,6.41448]
[1746474614433,10.11801933,1820.1,1820.0,1.09906]
[1746474614929,10.11801933,1820.1,1820.0,2.81626]
[1746474616434,10.11797933,1820.1,1820.0,2.81626]
[1746474616734,1.09906,1820.0,1819.9,1.93258]
[1746474616937,2.82676,1820.0,1819.9,1.09908]
[1746474617134,2.82676,1820.0,1819.9,4.83108]
[1746474617433,2.82676,1820.0,1819.9,6.54828]
[1746474617637,6.03456,1820.0,1819.9,3.732]
[1746474618323,6.03456,1820.0,1819.5,2.75616]
[1746474618324,1.0993,1819.6,1819.5,2.75616]
[1746474618923,2.8017,1819.6,1819.5,2.75616]
[1746474619127,2.8017,1819.6,1819.5,6.48816]
[1746474619327,3.6002,1819.6,1819.5,6.48816]
[1746474619537,4.3901,1819.6,1819.5,6.48816]
[1746474619926,3.2908,1819.6,1819.5,6.48816]
[1746474620121,2.5009,1819.6,1819.5,6.48816]
[1746474620327,3.6002,1819.6,1819.5,6.48816]
[1746474630249,3.6002,1819.6,1819.5,3.732]
[1746474631244,1.09936,1819.5,1819.4,1.09939]
[1746474631445,3.64626,1819.5,1819.4,1.09939]
[1746474631745,6.85406,1819.5,1819.4,1.09939]
[1746474632244,6.85406,1819.5,1819.3,42.4763]
[1746474632245,1.09942,1819.4,1819.3,43.57574]
[1746474632545,2.80242,1819.4,1819.3,43.57574]
[1746474632749,1.703,1819.4,1819.3,43.57574]
[1746474632949,2.80242,1819.4,1819.3,43.57574]
[1746474633146,2.80242,1819.4,1819.3,47.30774]
[1746474633444,1.09942,1819.4,1819.3,44.532]
[1746474633636,1.09942,1819.4,1819.3,3.732]
[1746474633637,2.68482,1819.4,1819.3,3.732]
[1746474633840,7.68482,1819.4,1819.3,3.732]
[1746474634042,2.68482,1819.4,1819.3,3.732]
[1746474634236,1.0996,1819.1,1819.0,1.09964]
[1746474634441,1.0996,1819.1,1819.0,2.68744]
[1746474634641,1.5854,1819.2,1819.1,1.0996]
[1746474634844,1.09948,1819.3,1819.2,1.09954]
[1746474635039,1.09948,1819.3,1819.2,2.76084]
[1746474635244,1.09948,1819.3,1819.2,4.34864]
[1746474636259,1.09948,1819.3,1819.2,8.08064]
[1746474636756,2.66308,1819.3,1819.2,8.08064]
[1746474637662,2.66308,1819.3,1819.2,5.3198]
[1746474638359,2.66308,1819.3,1819.2,6.41934]
[1746474638859,2.66308,1819.3,1819.2,5.3198]
[1746474639461,2.66308,1819.3,1819.2,6.41934]
[1746474639759,2.66308,1819.3,1819.2,5.3198]
[1746474640761,2.66308,1819.3,1819.2,3.732]
[1746474641264,2.66308,1819.3,1819.2,4.83154]
[1746474641460,1.09948,1819.3,1819.2,6.39554]
[1746474642466,4.30727,1819.4,1819.3,1.09948]
[1746474642663,4.30727,1819.4,1819.3,2.76538]
[1746474643059,4.30727,1819.4,1819.3,6.49738]
[1746474643268,6.02747,1819.4,1819.3,5.3979]
[1746474644168,6.02747,1819.4,1819.3,1.6659]
[1746474644467,1.09954,1819.2,1819.1,1.88107]
[1746474644765,4.30734,1819.2,1819.1,1.88107]
[1746474645761,4.30734,1819.2,1819.1,3.59477]
[1746474650268,3.2078,1819.2,1819.1,3.59477]
[1746474651269,4.30734,1819.2,1819.1,3.59477]
[1746474651465,3.2078,1819.2,1819.1,3.59477]
[1746474652770,4.30734,1819.2,1819.1,3.59477]
[1746474653166,1.09954,1819.2,1819.1,3.59477]
[1746474653362,1.6772,1819.5,1819.2,2.74882]
[1746474653570,2.77662,1819.5,1819.4,1.09942]
[1746474653761,4.36902,1819.5,1819.4,1.09942]
[1746474653962,4.36902,1819.5,1819.4,2.67292]
[1746474654275,4.36902,1819.5,1819.4,3.732]
[1746474655276,1.09942,1819.4,1819.3,1.09943]
[1746474655474,5.91092,1819.4,1819.3,2.67293]
[1746474656075,5.91092,1819.4,1819.3,6.40493]
[1746474657379,4.8115,1819.4,1819.3,6.40493]
[1746474657674,1.6037,1819.4,1819.3,6.40493]
[1746474657876,2.70312,1819.4,1819.3,6.40493]
[1746474658071,5.91092,1819.4,1819.3,6.40493]
[1746474660180,5.91092,1819.4,1819.3,3.732]
[1746474661176,4.8115,1819.4,1819.1,2.3795]
[1746474661376,1.7059,1819.3,1819.2,1.09948]
[1746474661577,3.2078,1819.4,1819.3,1.09948]
[1746474662074,1.09948,1819.3,1819.2,2.69749]
[1746474662372,2.80538,1819.3,1819.2,2.69749]
[1746474663080,2.80538,1819.3,1819.2,6.42949]
[1746474663280,2.80538,1819.3,1819.2,6.42954]
[1746474663476,7.80538,1819.3,1819.2,2.5805]
[1746474663682,1.09967,1819.0,1818.9,40.8]
[1746474663883,4.30747,1819.0,1818.9,40.8]
[1746474665986,1.09985,1818.7,1818.6,7.8509]
[1746474666476,1.09985,1818.7,1818.6,48.6509]
[1746474667986,2.82015,1818.7,1818.6,48.6509]
[1746474669882,5.16293,1818.8,1818.6,48.6509]
[1746474670088,1.09983,1818.8,1818.7,2.73415]
[1746474671885,3.58397,1818.9,1818.8,1.09979]
[1746474672097,1.09977,1818.9,1818.8,2.73409]
[1746474672589,4.0154,1819.0,1818.9,1.09973]
[1746474672788,3.2078,1819.0,1818.9,3.57333]
[1746474674788,3.2078,1819.0,1818.9,7.11433]
[1746474677886,4.803,1819.2,1819.1,1.0996]
[1746474678086,3.2078,1819.2,1819.1,1.0996]
[1746474678286,3.2078,1819.2,1819.1,2.6602]
[1746474679892,5.45608723,1819.5,1819.4,1.09942]
[1746474680093,5.45608723,1819.5,1819.4,4.64042]
[1746474680690,5.45608723,1819.5,1819.4,47.94772]
[1746474684994,1.12836,1819.7,1819.6,1.0993]
[1746474685194,3.67096,1819.7,1819.6,1.0993]
[1746474685394,4.50207,1819.7,1819.6,1.0993]
[1746474685598,4.50207,1819.7,1819.6,41.8993]
[1746474685796,3.4028,1819.7,1819.6,41.8993]
[1746474686197,4.50204,1819.7,1819.6,41.8993]
[1746474688399,3.4028,1819.7,1819.6,41.8993]
[1746474688599,4.50204,1819.7,1819.6,41.8993]
[1746474690001,3.4028,1819.7,1819.6,41.8993]
[1746474690394,3.4028,1819.7,1819.6,43.4685]
[1746474695204,4.50204,1819.7,1819.6,43.4685]
[1746474695405,4.50204,1819.7,1819.6,41.8993]
[1746474696301,9.50204,1819.7,1819.6,40.8]
[1746474696509,1.09942,1819.4,1819.3,3.536]
[1746474696703,4.30722,1819.4,1819.3,4.63548]
[1746474696907,4.30722,1819.4,1819.3,1.09948]
[1746474697308,6.84232,1819.4,1819.3,1.09948]
[1746474698901,5.7429,1819.4,1819.3,1.09948]
[1746474699102,6.84232,1819.4,1819.3,1.09948]
[1746474704613,1.09948,1819.3,1819.2,1.09949]
[1746474704809,1.09954,1819.2,1819.1,40.8]
[1746474705014,1.09954,1819.2,1818.7,1.09981]
[1746474705015,1.09985,1818.8,1818.7,1.09981]
[1746474705514,1.09985,1818.8,1818.7,41.89981]
[1746474705708,4.30765,1818.8,1818.7,40.8]
[1746474706113,6.73885,1818.8,1818.7,40.8]
[1746474706907,1.09997,1818.5,1818.4,8.40986204]
[1746474707112,4.30773,1818.6,1818.5,1.0999]
[1746474707313,5.89823,1818.6,1818.5,41.8999]
[1746474708310,4.7983,1818.6,1818.5,41.8999]
[1746474708615,3.2078,1818.6,1818.5,41.8999]
[1746474708917,1.5905,1818.7,1818.6,1.09991]
[1746474709114,1.5905,1818.7,1818.6,3.51181]
[1746474711209,2.69035,1818.7,1818.6,3.51181]
[1746474711409,2.69035,1818.7,1818.6,2.4119]
[1746474711713,2.69035,1818.7,1818.6,1.09991]
[1746474713016,1.09991,1818.6,1818.5,41.89992]
[1746474713216,5.86961,1818.6,1818.5,41.89992]
[1746474714208,4.7697,1818.6,1818.5,41.89992]
[1746474714410,5.86961,1818.6,1818.5,41.89992]
[1746474714616,4.7697,1818.6,1818.5,41.89992]
[1746474714815,1.5619,1818.6,1818.5,41.89992]
[1746474715119,2.66181,1818.6,1818.5,41.89992]
[1746474715617,1.09987,1818.7,1818.6,1.09991]
[1746474715818,1.09987,1818.7,1818.6,3.50131]
[1746474716021,1.09987,1818.7,1818.6,4.31991]
[1746474716711,6.74253,1818.8,1818.7,1.09985]
[1746474716912,6.74253,1818.8,1818.7,2.68395]
[1746474717818,3.53473,1818.8,1818.7,2.68395]
[1746474718218,6.74253,1818.8,1818.7,2.68395]
[1746474718515,6.74253,1818.8,1818.7,1.5841]
[1746474718721,1.09991,1818.6,1818.5,40.8]
[1746474718914,4.30771,1818.6,1818.5,43.49472]
[1746474719923,2.74179,1818.7,1818.6,1.09991]
[1746474720318,1.09989,1818.7,1818.6,2.69471]
[1746474721324,6.79023,1818.8,1818.7,1.09985]
[1746474721519,6.79023,1818.8,1818.7,3.64435]
[1746474724723,5.94953,1818.8,1818.7,3.64435]
[1746474725918,5.94953,1818.8,1818.7,1.09985]
[1746474727526,1.09985,1818.7,1818.6,3.61085]
[1746474727825,2.69575,1818.7,1818.6,3.61085]
[1746474728227,2.69575,1818.7,1818.6,1.09985]
[1746474728526,3.49365,1818.7,1818.6,1.09985]
[1746474728930,3.49365,1818.7,1818.6,2.76075]
[1746474729223,4.30762,1818.8,1818.7,1.09985]
[1746474729421,3.2078,1818.8,1818.7,2.76075]
[1746474730327,3.2078,1818.8,1818.5,40.8]
[1746474730328,1.09991,1818.6,1818.5,40.8]
[1746474730624,1.10015,1818.2,1818.1,0.8219]
[1746474730821,1.10015,1818.2,1818.1,2.406]
[1746474731023,1.10015,1818.2,1818.1,42.3841]
[1746474731325,2.75095,1818.2,1818.1,42.3841]
[1746474731520,2.75095,1818.2,1818.1,43.48431]
[1746474732428,5.93855,1818.3,1818.2,1.10015]
[1746474732627,5.93855,1818.3,1818.2,2.68425]
[1746474733932,3.2078,1818.3,1818.2,2.68425]
[1746474734622,4.30789,1818.3,1818.2,2.68425]
[1746474736723,4.30789,1818.3,1818.1,40.8]
[1746474736724,1.10015,1818.2,1818.1,41.90016]
[1746474736929,2.71005,1818.2,1818.1,41.90016]
[1746474737826,5.13614,1818.3,1818.2,1.10015]
[1746474738026,5.13614,1818.3,1818.2,2.68325]
[1746474739529,4.30794,1818.3,1818.2,2.68325]
[1746474740134,5.98084,1818.3,1818.2,2.68325]
[1746474743031,4.30794,1818.3,1818.2,2.68325]
[1746474743533,3.2078,1818.3,1818.2,2.68325]
[1746474745436,4.30789,1818.3,1818.2,2.68325]
[1746474746635,3.2078,1818.3,1818.2,2.68325]
[1746474747237,4.30789,1818.3,1818.2,2.68325]
[1746474748435,6.85319,1818.3,1818.2,1.5831]
[1746474748637,6.85319,1818.3,1818.2,2.68325]
[1746474750237,1.10015,1818.2,1818.1,41.90016]
[1746474750436,3.58025,1818.2,1818.1,41.90016]
[1746474750638,3.58025,1818.2,1818.1,43.56426]